bitfinex/quotes_BTCUSD_20220307
["timestamp","ask_amount","ask_price","bid_price","bid_amount"]
[1646665425362,0.2366,38901.0,38898.0,0.29]
[1646665425560,0.2366,38901.0,38900.0,0.1964365]
[1646665426762,0.2366,38901.0,38899.0,0.114276]
[1646665428562,0.2366,38901.0,38899.0,0.5813169]
[1646665428761,0.2366,38901.0,38900.0,0.3670409]
[1646665430205,0.2366,38901.0,38899.0,0.21595718]
[1646665430608,0.11789714,38904.0,38899.0,0.21595718]
[1646665430806,0.4147,38907.0,38900.0,0.41896106]
[1646665431011,0.478973,38907.0,38902.0,0.064274]
[1646665431907,0.478973,38907.0,38902.0,0.34045614]
[1646665432113,0.478973,38907.0,38902.0,0.064274]
[1646665432706,0.478973,38907.0,38901.0,0.064276]
[1646665433167,0.478973,38907.0,38900.0,0.05]
[1646665433168,0.294037,38903.0,38900.0,0.05]
[1646665433363,0.294037,38903.0,38899.0,0.10168118]
[1646665433761,0.35832171,38903.0,38899.0,0.10168118]
[1646665433960,0.35832171,38903.0,38900.0,0.01240668]
[1646665434165,0.06428471,38903.0,38900.0,0.01240668]
[1646665434365,0.32142471,38903.0,38900.0,0.01240668]
[1646665435461,0.25173769,38902.0,38900.0,0.01240668]
[1646665435860,0.32142471,38903.0,38900.0,0.01436196]
[1646665436264,0.25714,38903.0,38900.0,0.01436196]
[1646665437107,0.192855,38903.0,38900.0,0.01436196]
[1646665437507,0.064287,38904.0,38900.0,0.01436196]
[1646665437707,0.06459974,38904.0,38900.0,0.01436196]
[1646665438109,0.064276,38903.0,38900.0,0.01436196]
[1646665438307,0.2132045,38903.0,38900.0,0.01436196]
[1646665438509,0.06459974,38904.0,38900.0,0.01436196]
[1646665438510,0.12856229,38904.0,38900.0,0.01436196]
[1646665438709,0.16923053,38903.0,38900.0,0.01436196]
[1646665438915,0.76664406,38902.0,38899.0,0.1]
[1646665439110,0.16923053,38903.0,38899.0,0.1]
[1646665439313,0.397683,38902.0,38899.0,0.1]
[1646665439510,0.6989735,38902.0,38899.0,0.1]
[1646665440112,0.68627677,38900.0,38898.0,0.24]
[1646665440354,0.1,38899.0,38898.0,0.24]
[1646665441355,0.164301,38899.0,38898.0,0.24]
[1646665441559,0.561984,38899.0,38898.0,0.24]
[1646665441759,0.164301,38899.0,38898.0,0.24]
[1646665441960,0.53241936,38899.0,38898.0,0.24]
[1646665442163,0.97740236,38899.0,38898.0,0.24]
[1646665442357,1.07740236,38899.0,38893.0,0.0003637]
[1646665442557,0.397683,38896.0,38893.0,0.0003637]
[1646665442756,0.36684278,38895.0,38893.0,0.0003637]
[1646665442956,0.18023781,38894.0,38893.0,0.0003637]
[1646665443258,0.36672548,38894.0,38893.0,0.0003637]
[1646665443457,0.29182581,38892.0,38888.0,0.01269981]
[1646665444333,0.35612481,38892.0,38888.0,0.01269981]
[1646665444734,0.35612481,38892.0,38888.0,0.01304864]
[1646665445336,0.397683,38891.0,38888.0,0.01304864]
[1646665445538,0.43115521,38890.0,38888.0,0.01304864]
[1646665445835,0.06431243,38890.0,38888.0,0.01269981]
[1646665446135,0.06431243,38890.0,38888.0,0.01304864]
[1646665446535,0.43114178,38892.0,38888.0,0.01304864]
[1646665446536,0.064299,38892.0,38888.0,0.01304864]
[1646665446936,0.064299,38892.0,38888.0,0.01269981]
[1646665447138,0.064299,38892.0,38888.0,0.01304911]
[1646665447736,0.074581,38895.0,38888.0,0.01304911]
[1646665447959,0.12857,38899.0,38889.0,0.20943263]
[1646665448159,0.17813701,38898.0,38889.0,0.20943263]
[1646665448459,0.17813701,38898.0,38890.0,0.2097841]
[1646665448658,0.19448537,38895.0,38892.0,0.01451076]
[1646665449058,0.32306737,38895.0,38892.0,0.01451076]
[1646665449662,0.32306737,38895.0,38892.0,0.01486222]
[1646665450059,0.25877537,38895.0,38892.0,0.01486222]
[1646665450660,0.25877537,38895.0,38892.0,0.01451076]
[1646665450861,0.25877537,38895.0,38892.0,0.01486346]
[1646665451270,0.64055469,38895.0,38892.0,0.01486346]
[1646665451704,0.38736459,38895.0,38892.0,0.01486346]
[1646665451905,0.38736459,38895.0,38892.0,0.01451076]
[1646665452106,0.38736459,38895.0,38892.0,0.01486469]
[1646665452704,0.22112594,38894.0,38892.0,0.01486469]
[1646665453105,0.22112594,38894.0,38892.0,0.01451076]
[1646665453307,0.41404394,38894.0,38892.0,0.01451076]
[1646665453707,0.76452578,38893.0,38892.0,0.01451076]
[1646665454006,0.397683,38893.0,38892.0,0.01451076]
[1646665454208,0.41404394,38894.0,38892.0,0.01451076]
[1646665455006,0.06867794,38891.0,38886.0,0.03523383]
[1646665455211,0.52630241,38890.0,38886.0,0.03523383]
[1646665455456,0.52630241,38890.0,38882.0,0.01285]
[1646665455457,0.21874772,38886.0,38882.0,0.01285]
[1646665455663,0.397683,38885.0,38881.0,0.001]
[1646665455856,0.28307072,38886.0,38881.0,0.001]
[1646665456056,0.16795773,38882.0,38881.0,0.001]
[1646665457855,0.30600502,38883.0,38881.0,0.001]
[1646665460698,0.30600502,38883.0,38881.0,0.00068816]
[1646665460900,0.30600502,38883.0,38876.0,0.003]
[1646665460901,0.06432981,38880.0,38874.0,0.002]
[1646665461105,0.27606241,38879.0,38874.0,0.002]
[1646665461300,0.2,38879.0,38874.0,0.002]
[1646665461500,0.05,38879.0,38874.0,0.002]
[1646665461902,0.1,38887.0,38874.0,0.002]
[1646665461903,0.128612,38885.0,38879.0,0.06222066]
[1646665462101,0.9147,38891.0,38879.0,0.06222066]
[1646665462102,0.4147,38891.0,38879.0,0.06222066]
[1646665462300,0.4147,38891.0,38881.0,0.28584003]
[1646665462503,0.4147,38891.0,38880.0,0.32373063]
[1646665462701,0.4147,38891.0,38881.0,0.05]
[1646665462951,0.4147,38891.0,38879.0,0.37165329]
[1646665462952,0.1687462,38887.0,38884.0,0.00037849]
[1646665463157,0.23305409,38887.0,38884.0,0.00037849]
[1646665463954,0.23305409,38887.0,38879.0,0.06522066]
[1646665464157,0.19295829,38884.0,38879.0,0.06522066]
[1646665464755,0.21549686,38881.0,38879.0,0.06522066]
[1646665464954,0.27981886,38881.0,38879.0,0.06522066]
[1646665465158,0.27981886,38881.0,38876.0,0.00188615]
[1646665465366,0.398053,38878.0,38873.0,0.20975104]
[1646665465560,0.398053,38878.0,38871.0,0.19706696]
[1646665465561,1.25,38876.0,38870.0,0.001]
[1646665465857,0.05,38874.0,38870.0,0.001]
[1646665466059,0.46410208,38871.0,38869.0,0.001]
[1646665466256,0.46713352,38871.0,38869.0,0.001]
[1646665466456,0.47579444,38871.0,38866.0,0.002]
[1646665466705,0.47579153,38871.0,38866.0,0.002]
[1646665466909,0.30776091,38871.0,38866.0,0.002]
[1646665467506,0.48859922,38870.0,38866.0,0.002]
[1646665467808,0.16169492,38869.0,38867.0,0.00327274]
[1646665468005,0.22604692,38869.0,38867.0,0.00327274]
[1646665468708,0.22604692,38869.0,38867.0,0.003]
[1646665469706,0.22704692,38869.0,38867.0,0.003]
[1646665470361,0.22704692,38869.0,38865.0,0.002]
[1646665470362,1.443058,38868.0,38865.0,0.002]
[1646665470556,1.80776846,38868.0,38865.0,0.002]
[1646665470757,1.443058,38868.0,38865.0,0.002]
[1646665470956,0.15,38867.0,38865.0,0.002]
[1646665471366,0.1,38867.0,38865.0,0.00236381]
[1646665471858,0.23943349,38866.0,38865.0,0.00236381]
[1646665472259,0.23943349,38866.0,38865.0,0.002]
[1646665473661,0.24143349,38866.0,38865.0,0.002]
[1646665473861,0.002,38866.0,38865.0,0.002]
[1646665475124,0.002,38866.0,38865.0,0.01710328]
[1646665475526,1.443058,38868.0,38865.0,0.01710328]
[1646665476226,1.443058,38868.0,38865.0,0.01745018]
[1646665476824,1.65038814,38868.0,38865.0,0.01745018]
[1646665477025,1.65038814,38868.0,38865.0,0.01710328]
[1646665477225,0.193058,38868.0,38866.0,0.20973097]
[1646665477430,0.12870456,38869.0,38866.0,0.20973097]
[1646665477431,0.064352,38869.0,38866.0,0.20973097]
[1646665477629,0.064326,38873.0,38866.0,0.20973097]
[1646665478258,0.15932638,38872.0,38866.0,0.20973097]
[1646665478459,0.15932638,38872.0,38868.0,0.00034756]
[1646665479258,0.064326,38873.0,38868.0,0.00034756]
[1646665479460,0.064326,38873.0,38866.0,0.20973097]
[1646665479662,2.91907112,38880.0,38868.0,0.00034755]
[1646665479663,0.02687112,38880.0,38868.0,0.00034755]
[1646665479861,0.00027148,38874.0,38869.0,0.07704]
[1646665480059,0.00027148,38874.0,38871.0,0.02554]
[1646665480261,0.00027148,38874.0,38869.0,0.06741287]
[1646665480262,0.00027148,38874.0,38873.0,0.02554]
[1646665480565,0.00027148,38874.0,38873.0,0.06285506]
[1646665480762,0.4411,38881.0,38873.0,0.16285506]
[1646665480962,0.00027149,38875.0,38873.0,0.16285506]
[1646665481162,0.00027149,38875.0,38874.0,0.01286]
[1646665481904,0.4411,38881.0,38879.0,0.00037038]
[1646665482404,0.4411,38881.0,38879.0,0.01276756]
[1646665482605,0.4411,38881.0,38879.0,0.00776756]
[1646665483006,0.2366,38890.0,38881.0,0.95]
[1646665483309,0.12459124,38895.0,38881.0,0.95]
[1646665483310,0.4411,38892.0,38883.0,0.04028742]
[1646665483508,0.4411,38892.0,38888.0,0.02554]
[1646665483704,0.4411,38892.0,38889.0,0.09233646]
[1646665484105,0.4411,38892.0,38889.0,0.14233646]
[1646665484305,0.4411,38892.0,38889.0,0.11679646]
[1646665484908,0.4411818,38892.0,38889.0,0.11679646]
[1646665485110,0.4411818,38892.0,38889.0,0.07964646]
[1646665485350,0.4411818,38892.0,38889.0,0.15518646]
[1646665485556,0.4411,38892.0,38889.0,0.15518646]
[1646665485753,0.33955116,38891.0,38890.0,0.28223896]
[1646665485956,0.33955116,38891.0,38890.0,0.85071055]
[1646665485957,0.29463416,38891.0,38890.0,0.85071055]
[1646665486155,0.00027217,38892.0,38890.0,0.59978896]
[1646665486351,0.00027217,38892.0,38891.0,0.19159]
[1646665486553,0.00027217,38892.0,38891.0,0.30736]
[1646665486753,0.4411,38902.0,38894.0,0.17874]
[1646665486953,0.4411,38902.0,38901.0,0.19321636]
[1646665487154,0.4411,38902.0,38901.0,0.23971636]
[1646665487352,0.4411,38902.0,38901.0,0.12704]
[1646665488353,0.4411,38902.0,38901.0,0.22704]
[1646665488756,0.4411,38902.0,38901.0,0.83679911]
[1646665489137,0.411,38914.0,38903.0,0.17874]
[1646665489335,0.411,38914.0,38912.0,0.02554]
[1646665489532,0.411,38914.0,38913.0,0.0515]
[1646665490738,0.46235865,38915.0,38913.0,0.0515]
[1646665491139,0.21934233,38915.0,38913.0,0.0515]
[1646665491339,0.49207685,38918.0,38913.0,0.0515]
[1646665491542,0.72867685,38922.0,38913.0,0.0515]
[1646665491736,0.21334635,38921.0,38914.0,0.3631734]
[1646665491936,0.00031679,38916.0,38914.0,0.3631734]
[1646665492136,0.00031679,38916.0,38913.0,0.0515]
[1646665492337,0.00031679,38916.0,38909.0,0.3681734]
[1646665492538,0.00031679,38916.0,38910.0,0.0515]
[1646665492749,0.49207685,38918.0,38910.0,0.0515]
[1646665492750,0.19263513,38915.0,38910.0,0.0515]
[1646665492957,0.19263513,38915.0,38904.0,0.3681734]
[1646665493156,0.28614106,38911.0,38902.0,0.3681734]
[1646665493357,0.064268,38909.0,38900.0,0.4181734]
[1646665493659,0.064268,38909.0,38900.0,0.3681734]
[1646665493856,0.21507702,38913.0,38902.0,0.064264]
[1646665494056,0.21507702,38913.0,38903.0,0.3681734]
[1646665494257,0.00031679,38906.0,38903.0,0.3681734]
[1646665494856,0.00031679,38906.0,38900.0,0.3937134]
[1646665495056,0.00031679,38906.0,38900.0,0.4579814]
[1646665495256,0.18547407,38911.0,38900.0,0.5079814]
[1646665495455,9.519e-05,38905.0,38900.0,0.5079814]
[1646665495657,9.519e-05,38905.0,38900.0,0.4437134]
[1646665496259,0.06296213,38907.0,38901.0,0.02554]
[1646665496707,9.519e-05,38904.0,38900.0,0.4181734]
[1646665496907,9.519e-05,38904.0,38900.0,0.05]
[1646665497109,9.519e-05,38904.0,38900.0,0.4310234]
[1646665497310,9.519e-05,38904.0,38901.0,0.07471663]
[1646665497512,9.519e-05,38904.0,38893.0,0.05]
[1646665497711,0.28194391,38905.0,38897.0,0.01356929]
[1646665497909,0.34622491,38905.0,38897.0,0.01356929]
[1646665498109,0.06428225,38903.0,38897.0,0.01356929]
[1646665498308,0.21049109,38900.0,38897.0,0.01356929]
[1646665498608,0.21049109,38900.0,38892.0,0.01151127]
[1646665498609,0.064285,38898.0,38892.0,0.01151127]
[1646665499212,0.28194391,38905.0,38894.0,0.20774055]
[1646665499410,0.28194391,38905.0,38894.0,0.25774055]
[1646665499610,0.28194391,38905.0,38896.0,0.0105117]
[1646665500111,0.17354412,38903.0,38896.0,0.0105117]
[1646665500367,0.064275,38901.0,38896.0,0.0105117]
[1646665500568,0.05,38908.0,38904.0,0.37074015]
[1646665500768,0.05,38908.0,38905.0,0.01499066]
[1646665500969,0.505376,38907.0,38905.0,0.01499066]
[1646665501173,0.4411,38907.0,38905.0,0.0194806]
[1646665501373,0.505376,38907.0,38905.0,0.0194806]
[1646665501568,0.4411,38907.0,38905.0,0.0194806]
[1646665503673,0.3652471,38906.0,38905.0,0.0194806]
[1646665503875,0.3652471,38906.0,38905.0,0.0111806]
[1646665504309,0.63651965,38907.0,38905.0,0.0111806]
[1646665504510,0.76508194,38907.0,38905.0,0.0111806]
[1646665504710,0.70079934,38907.0,38905.0,0.0111806]
[1646665505620,0.3652471,38906.0,38905.0,0.0111806]
[1646665505810,0.5152471,38906.0,38905.0,0.0111806]
[1646665506013,1.25,38905.0,38904.0,0.37074015]
[1646665506212,1.8167471,38905.0,38904.0,0.37074015]
[1646665507414,1.8167471,38905.0,38892.0,0.00034235]
[1646665507415,0.13271044,38895.0,38892.0,0.00034235]
[1646665507618,0.43142558,38894.0,38892.0,0.00034235]
[1646665507859,0.064302,38894.0,38892.0,0.00034235]
[1646665508361,0.19734497,38893.0,38892.0,0.00034235]
[1646665508857,0.064302,38894.0,38892.0,0.00034235]
[1646665509062,0.06429631,38895.0,38892.0,0.00034235]
[1646665509859,0.27115773,38895.0,38892.0,0.00034235]
[1646665510059,0.27908556,38895.0,38892.0,0.00034235]
[1646665511164,0.4411,38900.0,38892.0,0.00034235]
[1646665511361,0.4411,38900.0,38893.0,0.064273]
[1646665511619,0.4411,38900.0,38894.0,0.37986007]
[1646665511812,0.4411,38900.0,38894.0,0.42986007]
[1646665512011,0.4411,38900.0,38895.0,0.128544]
[1646665512012,0.60069135,38900.0,38895.0,0.128544]
[1646665512411,0.4411,38900.0,38895.0,0.49566758]
[1646665514113,0.4411,38900.0,38898.0,0.02554]
[1646665514319,0.00031573,38904.0,38899.0,0.128525]
[1646665514513,0.05,38905.0,38900.0,0.36712358]
[1646665514711,0.05,38905.0,38900.0,0.41712358]
[1646665514913,0.010293,38908.0,38900.0,0.41712358]
[1646665514914,0.00031574,38904.0,38902.0,0.01359185]
[1646665515366,0.00031574,38904.0,38903.0,0.089802]
[1646665515566,0.00031574,38904.0,38903.0,0.55692558]
[1646665515764,0.4147,38910.0,38904.0,0.02554]
[1646665515966,0.4147,38910.0,38903.0,0.46712358]
[1646665515967,0.00031576,38905.0,38903.0,0.46712358]
[1646665516167,0.00031576,38905.0,38904.0,0.02554]
[1646665516366,0.00031576,38905.0,38904.0,0.52116458]
[1646665516568,0.00031576,38905.0,38904.0,0.67436458]
[1646665516765,0.00031576,38905.0,38904.0,0.97039075]
[1646665516973,0.4147,38910.0,38904.0,0.77436458]
[1646665517166,0.00031497,38906.0,38905.0,0.26860013]
[1646665517366,0.00031497,38906.0,38905.0,0.93892371]
[1646665517567,0.00031497,38906.0,38905.0,1.18494988]
[1646665517766,0.00031497,38906.0,38905.0,1.23224988]
[1646665517966,0.00031497,38906.0,38905.0,1.33214988]
[1646665518167,0.4147,38910.0,38905.0,1.33214988]
[1646665518365,0.4147,38910.0,38906.0,0.54586358]
[1646665518566,0.23691497,38907.0,38906.0,0.59316358]
[1646665518768,0.23691497,38907.0,38906.0,0.88918975]
[1646665519412,0.2366,38907.0,38906.0,0.88918975]
[1646665519622,0.00031497,38908.0,38906.0,0.9891885]
[1646665519813,0.00125971,38914.0,38908.0,0.97554]
[1646665520014,0.00125971,38914.0,38909.0,0.39266358]
[1646665520213,0.00125971,38914.0,38911.0,0.2367989]
[1646665520412,0.00125971,38914.0,38913.0,0.19243641]
[1646665520614,0.49207685,38918.0,38912.0,0.26962811]
[1646665520813,0.3438816,38925.0,38913.0,0.36712358]
[1646665520814,0.6777,38924.0,38913.0,0.36712358]
[1646665521417,0.06424,38922.0,38913.0,0.43136458]
[1646665522015,0.06424,38922.0,38913.0,0.064241]
[1646665522515,0.16326329,38920.0,38913.0,0.064241]
[1646665522714,0.16326329,38920.0,38911.0,0.1]
[1646665522715,0.064251,38919.0,38911.0,0.2]
[1646665522964,0.064251,38919.0,38912.0,0.064251]
[1646665523465,0.064251,38919.0,38913.0,0.29467041]
[1646665523663,0.064251,38919.0,38913.0,0.34467041]
[1646665523863,0.064251,38919.0,38914.0,0.05]
[1646665524063,0.064251,38919.0,38915.0,0.064246]
[1646665524265,0.806188,38924.0,38915.0,0.064246]
[1646665524266,0.2366,38924.0,38916.0,0.39646092]
[1646665524566,0.2366,38924.0,38916.0,0.42562254]
[1646665524567,0.00031498,38918.0,38916.0,0.42562254]
[1646665524967,0.00031498,38918.0,38916.0,0.51539054]
[1646665525164,0.23785972,38924.0,38918.0,1.17554]
[1646665525165,0.21018618,38924.0,38918.0,1.17554]
[1646665525366,0.000216,38925.0,38920.0,0.17874]
[1646665525566,0.000216,38925.0,38920.0,0.19158]
[1646665525764,0.000216,38925.0,38920.0,0.39157875]
[1646665525965,0.000216,38925.0,38920.0,0.21283875]
[1646665526165,0.000216,38925.0,38921.0,0.1]
[1646665526366,0.000216,38925.0,38920.0,0.11284]
[1646665527015,0.20680214,38925.0,38921.0,0.128444]
[1646665527518,0.20680214,38925.0,38920.0,0.11284]
[1646665527519,0.20680214,38925.0,38922.0,0.01490474]
[1646665528714,0.000216,38925.0,38922.0,0.01490474]
[1646665528915,0.000216,38925.0,38922.0,0.38393588]
[1646665529116,0.000216,38925.0,38922.0,0.43393588]
[1646665529317,0.00053019,38925.0,38922.0,0.56239188]
[1646665530121,0.000216,38925.0,38922.0,0.56239188]
[1646665530358,0.00053019,38925.0,38923.0,0.064227]
[1646665531362,0.000216,38925.0,38923.0,0.064227]
[1646665531560,0.000216,38925.0,38922.0,0.28259488]
[1646665531861,0.2192155,38924.0,38922.0,0.24336074]
[1646665532061,0.2192155,38924.0,38922.0,0.06490474]
[1646665532260,0.2192155,38924.0,38922.0,0.01490474]
[1646665532461,0.36903114,38923.0,38922.0,0.01490474]
[1646665532665,0.28346293,38924.0,38922.0,0.01490474]
[1646665532859,0.20786259,38923.0,38922.0,0.01490474]
[1646665537615,0.2192155,38924.0,38922.0,0.01490474]
[1646665537875,0.21952969,38924.0,38922.0,0.01490474]
[1646665538072,0.00031419,38924.0,38922.0,0.01490474]
[1646665538573,0.000216,38925.0,38922.0,0.01490474]
[1646665538774,0.000216,38925.0,38923.0,0.064238]
[1646665538973,0.00053019,38925.0,38923.0,0.064238]
[1646665539372,0.00053019,38925.0,38924.0,0.26973093]
[1646665539772,0.000216,38925.0,38924.0,0.31973093]
[1646665539973,0.000216,38925.0,38924.0,0.23971416]
[1646665540377,0.000216,38925.0,38924.0,0.23969588]
[1646665540775,0.000216,38925.0,38924.0,0.41843588]
[1646665541076,0.000216,38925.0,38924.0,0.44289588]
[1646665541275,0.000216,38925.0,38924.0,0.2532]
[1646665541714,0.000216,38925.0,38924.0,0.54303667]
[1646665541916,0.00031419,38926.0,38925.0,1.30320831]
[1646665542118,0.00704,38930.0,38925.0,1.30320831]
[1646665542119,0.00704,38930.0,38928.0,0.02252615]
[1646665542314,0.00704,38930.0,38929.0,0.267406]
[1646665542513,0.411,38934.0,38930.0,1.4032]
[1646665542514,0.00125657,38932.0,38930.0,1.4032]
[1646665542716,0.15,38936.0,38929.0,1.30396061]
[1646665542717,0.15,38936.0,38933.0,0.18190467]
[1646665542919,0.04356633,38936.0,38935.0,0.15]
[1646665543113,0.04356633,38936.0,38935.0,0.0473]
[1646665543313,0.4411,38944.0,38935.0,0.0473]
[1646665543314,0.4411,38944.0,38938.0,0.75267221]
[1646665543514,0.135849,38940.0,38939.0,0.40884373]
[1646665543816,0.135849,38940.0,38939.0,0.54186193]
[1646665544017,0.35245934,38940.0,38939.0,0.36010329]
[1646665544215,0.135849,38940.0,38939.0,0.5]
[1646665544414,0.134049,38940.0,38939.0,0.74]
[1646665544915,0.134049,38940.0,38939.0,0.84]
[1646665545369,0.134049,38940.0,38939.0,1.6807975]
[1646665545573,0.134049,38940.0,38939.0,1.8339975]
[1646665545771,0.134049,38940.0,38939.0,1.3339975]
[1646665545970,0.134049,38940.0,38939.0,0.96913343]
[1646665546171,0.134049,38940.0,38939.0,0.43591029]
[1646665546371,0.134049,38940.0,38939.0,0.24]
[1646665546971,0.33277446,38940.0,38939.0,0.24]
[1646665548775,0.33277446,38940.0,38939.0,0.0001]
[1646665549215,0.134049,38940.0,38933.0,0.36388523]
[1646665549414,0.134049,38940.0,38934.0,0.0473]
[1646665549612,0.134049,38940.0,38938.0,0.128401]
[1646665549814,0.134049,38940.0,38935.0,0.59273756]
[1646665549815,0.134049,38940.0,38936.0,0.2532]
[1646665550013,0.11028809,38940.0,38939.0,0.064211]
[1646665550817,0.20261817,38942.0,38939.0,0.064211]
[1646665551015,0.00031026,38941.0,38939.0,0.064211]
[1646665551817,0.02964203,38942.0,38939.0,0.064211]
[1646665552017,0.02995229,38942.0,38939.0,0.064211]
[1646665553087,0.02964203,38942.0,38939.0,0.064211]
[1646665553287,0.02995229,38942.0,38939.0,0.064211]
[1646665554289,0.02995229,38942.0,38939.0,0.077051]
[1646665554290,0.02964203,38942.0,38939.0,0.077051]
[1646665554490,0.02991586,38942.0,38939.0,0.077051]
[1646665555093,0.02991586,38942.0,38940.0,0.01284]
[1646665555289,0.02991586,38942.0,38936.0,0.19586391]
[1646665555493,0.02991586,38942.0,38934.0,0.128425]
[1646665555494,0.128438,38940.0,38934.0,0.128425]
[1646665555689,0.22470666,38937.0,38934.0,0.128425]
[1646665556092,0.05,38938.0,38934.0,0.128425]
[1646665556714,0.05,38938.0,38934.0,0.178425]
[1646665556914,0.05027383,38938.0,38934.0,0.178425]
[1646665557315,0.00027383,38938.0,38934.0,0.45342375]
[1646665557514,0.00027383,38938.0,38935.0,0.37126621]
[1646665557713,0.00027383,38938.0,38937.0,0.2032]
[1646665557914,0.3622089,38950.0,38939.0,0.128389]
[1646665558114,0.064198,38950.0,38939.0,0.128389]
[1646665558316,0.00124087,38944.0,38939.0,0.178389]
[1646665558917,0.63263354,38949.0,38941.0,0.92554]
[1646665558918,0.4411,38949.0,38941.0,0.92554]
[1646665559115,0.1499,38951.0,38946.0,0.2531]
[1646665559315,0.05,38951.0,38946.0,0.2531]
[1646665559616,0.00124087,38949.0,38947.0,0.3622089]
[1646665559815,0.00124087,38949.0,38948.0,0.3032]
[1646665560015,0.00124087,38949.0,38948.0,0.6654089]
[1646665560218,0.2366,38953.0,38948.0,0.6654089]
[1646665560671,0.2366,38953.0,38948.0,0.86127281]
[1646665560866,0.2366,38953.0,38950.0,0.1532]
[1646665561066,0.2366,38953.0,38951.0,0.5795799]
[1646665561271,0.2366,38953.0,38952.0,0.61373542]
[1646665561867,9.308e-05,38954.0,38953.0,0.25948946]
[1646665562068,9.308e-05,38954.0,38953.0,0.62058678]
[1646665562269,9.308e-05,38954.0,38953.0,0.46738678]
[1646665562468,9.308e-05,38954.0,38953.0,0.10628946]
[1646665562670,0.16400854,38956.0,38953.0,0.10628946]
[1646665562671,0.37836458,38955.0,38953.0,0.10628946]
[1646665563068,0.37845766,38955.0,38953.0,0.10628946]
[1646665563268,0.12845766,38955.0,38953.0,0.10628946]
[1646665563470,0.19023581,38954.0,38953.0,0.10628946]
[1646665563670,0.12845766,38955.0,38953.0,0.10628946]
[1646665563875,0.064181,38955.0,38953.0,0.23465046]
[1646665564130,0.06417695,38958.0,38953.0,0.23465046]
[1646665564346,0.00030716,38955.0,38954.0,0.99685299]
[1646665564531,0.00030716,38955.0,38954.0,0.34685299]
[1646665564731,0.00030716,38955.0,38954.0,0.19586391]
[1646665564933,0.00030716,38955.0,38954.0,0.35943844]
[1646665565133,0.05,38961.0,38954.0,0.35943844]
[1646665565333,0.00030716,38956.0,38954.0,0.42360844]
[1646665565534,0.00030716,38956.0,38954.0,0.06417]
[1646665566234,0.35415837,38958.0,38954.0,0.06417]
[1646665566439,0.18216594,38956.0,38954.0,0.06417]
[1646665567862,0.18094594,38956.0,38954.0,0.06417]
[1646665568063,0.18094594,38956.0,38954.0,0.06375]
[1646665568268,0.06448425,38957.0,38954.0,0.06375]
[1646665568464,0.00030716,38957.0,38955.0,0.35943844]
[1646665568666,0.010276,38959.0,38956.0,0.95]
[1646665568865,0.05,38961.0,38956.0,0.95]
[1646665568866,0.064163,38960.0,38957.0,0.4219493]
[1646665569266,0.064163,38960.0,38957.0,0.61937397]
[1646665569665,0.064163,38960.0,38958.0,0.1532]
[1646665569867,0.064159,38964.0,38960.0,0.04900448]
[1646665570066,0.064159,38964.0,38961.0,0.1532]
[1646665570266,0.064159,38964.0,38962.0,0.3577883]
[1646665570465,0.00036854,38966.0,38963.0,0.1532]
[1646665570665,0.00036854,38966.0,38959.0,0.0999]
[1646665570868,0.25703911,38966.0,38958.0,0.19575586]
[1646665571066,0.25,38963.0,38954.0,0.19575586]
[1646665571266,0.25,38963.0,38955.0,0.5]
[1646665571267,0.192556,38962.0,38955.0,0.5]
[1646665571469,0.05,38960.0,38955.0,0.5]
[1646665571934,0.05,38960.0,38956.0,0.06418]
[1646665572335,0.05,38960.0,38956.0,0.4219683]
[1646665572533,0.05030639,38960.0,38956.0,0.4219683]
[1646665572733,0.05030639,38960.0,38956.0,0.06418]
[1646665573133,0.05030639,38960.0,38957.0,0.35615496]
[1646665573533,0.05,38960.0,38957.0,0.35615496]
[1646665573732,0.05030639,38960.0,38957.0,0.54850276]
[1646665574534,0.05030639,38960.0,38957.0,0.35615496]
[1646665574735,0.05,38960.0,38957.0,0.35615496]
[1646665574935,0.05030639,38960.0,38957.0,0.35615496]
[1646665575766,0.05030639,38960.0,38958.0,0.1]
[1646665575967,0.05,38960.0,38959.0,0.35615496]
[1646665576167,0.05030639,38960.0,38959.0,0.06885]
[1646665576969,0.05030639,38960.0,38959.0,0.42500496]
[1646665577166,0.05,38960.0,38959.0,0.06885]
[1646665577966,0.05,38960.0,38959.0,0.42500496]
[1646665578366,0.05,38960.0,38959.0,0.52500496]
[1646665578767,0.00030639,38961.0,38959.0,0.52500496]
[1646665578769,0.00030639,38961.0,38959.0,0.79099614]
[1646665578967,0.05846539,38963.0,38961.0,0.6]
[1646665579212,0.05846539,38963.0,38961.0,0.95615496]
[1646665579414,0.05846539,38963.0,38960.0,0.25991286]
[1646665579619,0.05846539,38963.0,38960.0,0.35991286]
[1646665579813,0.27081761,38963.0,38959.0,0.48446896]
[1646665580018,0.27081761,38963.0,38956.0,0.005]
[1646665580019,1.25,38960.0,38956.0,0.005]
[1646665580218,0.35615496,38959.0,38956.0,0.005]
[1646665580416,0.064191,38958.0,38955.0,0.35615496]
[1646665580614,0.114187,38959.0,38955.0,0.35615496]
[1646665580615,0.114187,38959.0,38956.0,0.22522019]
[1646665580817,0.06416583,38965.0,38957.0,0.35615496]
[1646665581015,0.05,38966.0,38957.0,0.35615496]
[1646665581215,0.05,38966.0,38957.0,0.38115496]
[1646665581216,9.191e-05,38963.0,38957.0,0.38115496]
[1646665581414,0.064187,38959.0,38957.0,0.38115496]
[1646665581621,0.064187,38959.0,38958.0,0.1]
[1646665581814,0.05,38966.0,38963.0,0.10881962]
[1646665583263,0.064165,38965.0,38963.0,0.10881962]
[1646665583664,0.12833321,38965.0,38963.0,0.10881962]
[1646665584062,0.13860921,38965.0,38963.0,0.10881962]
[1646665584264,0.33969466,38964.0,38953.0,0.10628946]
[1646665584566,0.1713477,38954.0,38953.0,0.10628946]
[1646665585563,0.06419108,38955.0,38953.0,0.10628946]
[1646665585965,0.064191,38956.0,38953.0,0.10628946]
[1646665587019,0.064191,38956.0,38953.0,0.17047246]
[1646665587815,0.064191,38956.0,38948.0,0.005]
[1646665587816,0.3390859,38955.0,38948.0,0.005]
[1646665588017,0.23802223,38949.0,38948.0,0.005]
[1646665588217,0.23802223,38949.0,38939.0,0.31381424]
[1646665588218,1.25,38948.0,38940.0,0.20920949]
[1646665588418,1.25,38948.0,38938.0,0.26151186]
[1646665588419,0.33722656,38947.0,38938.0,0.20920949]